[Event "Kvibergspelen 2018"]
[Site "Prioritet Serneke Arena, Krutvagen 2, Gothenburg, Sweden"]
[Date "2018.04.21"]
[Round "3.2"]
[White "Wengholm, Anders"]
[Black "Hector, Jonny"]
[Result "0-1"]
[TimeControl "15 minutes + 5 seconds per move from move one (Round 1 - 4) / 90 minutes + 30 seconds per move from move one (Round 5 - 8)"]
[BlackTitle "GM"]
[WhiteFideId "1704818"]
[BlackFideId "1700090"]
[WhiteElo "2158"]
[BlackElo "2502"]

1. Nf3 {[%clk 00:15:08]} {[%emt 00:00:01]} d5 {[%clk 00:15:07]} {[%emt
00:00:04]} 2. g3 {[%clk 00:15:11]} {[%emt 00:00:01]} Nc6 {[%clk 00:15:09]}
{[%emt 00:00:02]} 3. d3 {[%clk 00:15:11]} {[%emt 00:00:06]} e5 {[%clk
00:15:10]} {[%emt 00:00:04]} 4. c3 {[%clk 00:15:13]} {[%emt 00:00:04]} f5
{[%clk 00:15:08]} {[%emt 00:00:05]} 5. b4 {[%clk 00:14:55]} {[%emt 00:00:24]}
e4 {[%clk 00:14:50]} {[%emt 00:00:22]} 6. b5 {[%clk 00:13:54]} {[%emt
00:01:08]} exf3 {[%clk 00:13:48]} {[%emt 00:01:06]} 7. bxc6 {[%clk 00:13:58]}
{[%emt 00:00:02]} fxe2 {[%clk 00:13:34]} {[%emt 00:00:19]} 8. Qxe2+ {[%clk
00:13:47]} {[%emt 00:00:15]} Be7 {[%clk 00:13:17]} {[%emt 00:00:21]} 9. cxb7
{[%clk 00:13:24]} {[%emt 00:00:30]} Bxb7 {[%clk 00:13:20]} {[%emt 00:00:01]} 10.
Bh3 {[%clk 00:10:51]} {[%emt 00:02:38]} d4 {[%clk 00:12:46]} {[%emt 00:00:38]}
11. O-O {[%clk 00:10:53]} {[%emt 00:00:03]} Qd5 {[%clk 00:12:46]} {[%emt
00:00:04]} 12. f3 {[%clk 00:10:57]} {[%emt 00:00:02]} dxc3 {[%clk 00:12:37]}
{[%emt 00:00:14]} 13. Nxc3 {[%clk 00:11:00]} {[%emt 00:00:02]} Qc5+ {[%clk
00:12:38]} {[%emt 00:00:03]} 14. Kh1 {[%clk 00:11:04]} {[%emt 00:00:02]} Nf6
{[%clk 00:11:21]} {[%emt 00:01:22]} 15. Bf4 {[%clk 00:05:53]} {[%emt 00:05:16]}
Qxc3 {[%clk 00:10:22]} {[%emt 00:01:04]} 16. Rac1 {[%clk 00:05:46]} {[%emt
00:00:12]} Qa3 {[%clk 00:09:10]} {[%emt 00:01:16]} 17. Rxc7 {[%clk 00:05:31]}
{[%emt 00:00:21]} Bd5 {[%clk 00:08:42]} {[%emt 00:00:32]} 18. Re1 {[%clk
00:02:24]} {[%emt 00:03:12]} O-O {[%clk 00:08:43]} {[%emt 00:00:03]} 19. Qxe7
{[%clk 00:02:09]} {[%emt 00:00:22]} Qxe7 {[%clk 00:07:29]} {[%emt 00:01:18]} 20.
Rexe7 {[%clk 00:02:11]} {[%emt 00:00:04]} Rf7 {[%clk 00:07:27]} {[%emt
00:00:06]} 21. Bxf5 {[%clk 00:01:05]} {[%emt 00:01:12]} Rxe7 {[%clk 00:07:08]}
{[%emt 00:00:24]} 22. Rxe7 {[%clk 00:01:08]} {[%emt 00:00:02]} Bxa2 {[%clk
00:06:58]} {[%emt 00:00:14]} 23. Be4 {[%clk 00:00:52]} {[%emt 00:00:22]} Bd5
{[%clk 00:06:55]} {[%emt 00:00:08]} 24. Be5 {[%clk 00:00:52]} {[%emt 00:00:06]}
Bxe4 {[%clk 00:06:41]} {[%emt 00:00:18]} 25. dxe4 {[%clk 00:00:29]} {[%emt
00:00:28]} a5 {[%clk 00:06:45]} {[%emt 00:00:01]} 26. Bxf6 {[%clk 00:00:28]}
{[%emt 00:00:07]} gxf6 {[%clk 00:06:48]} {[%emt 00:00:01]} 27. Rd7 {[%clk
00:00:32]} {[%emt 00:00:02]} a4 {[%clk 00:06:52]} {[%emt 00:00:01]} 28. Rd2
{[%clk 00:00:35]} {[%emt 00:00:01]} a3 {[%clk 00:06:55]} {[%emt 00:00:01]} 29.
Ra2 {[%clk 00:00:40]} Kf7 {[%clk 00:06:59]} {[%emt 00:00:01]} 30. Kg2 {[%clk
00:00:44]} Ke6 {[%clk 00:07:03]} 31. Kf2 {[%clk 00:00:48]} Kd6 {[%clk
00:07:03]} {[%emt 00:00:07]} 32. Ke3 {[%clk 00:00:52]} {[%emt 00:00:01]} Kc5
{[%clk 00:07:07]} 33. Kf4 {[%clk 00:00:50]} {[%emt 00:00:08]} Kb4 {[%clk
00:07:09]} {[%emt 00:00:03]} 34. Kf5 {[%clk 00:00:54]} {[%emt 00:00:01]} Ra6
{[%clk 00:07:13]} 35. g4 {[%clk 00:00:55]} {[%emt 00:00:04]} Kb3 {[%clk
00:07:15]} {[%emt 00:00:03]} 36. Ra1 {[%clk 00:00:56]} {[%emt 00:00:05]} Kb2
{[%clk 00:07:19]} {[%emt 00:00:01]} 37. Re1 {[%clk 00:00:56]} {[%emt 00:00:05]}
a2 {[%clk 00:07:22]} {[%emt 00:00:02]} 38. g5 {[%clk 00:00:58]} {[%emt
00:00:03]} fxg5 {[%clk 00:07:19]} {[%emt 00:00:08]} 39. Kxg5 {[%clk 00:01:02]}
a1=Q {[%clk 00:06:20]} {[%emt 00:01:04]} 40. Rxa1 {[%clk 00:01:06]} {[%emt
00:00:02]} Rxa1 {[%clk 00:06:23]} {[%emt 00:00:01]} 41. e5 {[%clk 00:01:07]}
{[%emt 00:00:04]} Re1 {[%clk 00:05:34]} {[%emt 00:00:54]} 42. f4 {[%clk
00:00:58]} {[%emt 00:00:15]} Kc3 {[%clk 00:05:36]} {[%emt 00:00:02]} 43. Kf5
{[%clk 00:00:17]} {[%emt 00:00:47]} Kd4 {[%clk 00:05:37]} {[%emt 00:00:03]} 44.
Ke6 {[%clk 00:00:11]} {[%emt 00:00:12]} Ke4 {[%clk 00:03:34]} {[%emt 00:02:08]}
45. f5 {[%clk 00:00:13]} {[%emt 00:00:03]} Kf4 {[%clk 00:03:38]} 0-1

[Event "Kvibergspelen 2018"]
[Site "Prioritet Serneke Arena, Krutvagen 2, Gothenburg, Sweden"]
[Date "2018.04.21"]
[Round "3.3"]
[White "Blomqvist, Erik"]
[Black "Crevatin, Leo"]
[Result "1-0"]
[TimeControl "15 minutes + 5 seconds per move from move one (Round 1 - 4) / 90 minutes + 30 seconds per move from move one (Round 5 - 8)"]
[WhiteTitle "GM"]
[WhiteFideId "1709437"]
[BlackFideId "1726307"]
[WhiteElo "2494"]
[BlackElo "2157"]

1. e4 {[%clk 00:15:09]} {[%emt 00:24:16]} c5 {[%clk 00:15:09]} {[%emt
00:00:01]} 2. Nf3 {[%clk 00:15:12]} {[%emt 00:00:01]} Nc6 {[%clk 00:15:13]} 3.
c3 {[%clk 00:15:12]} {[%emt 00:00:06]} d5 {[%clk 00:15:17]} {[%emt 00:00:01]} 4.
exd5 {[%clk 00:15:16]} {[%emt 00:00:01]} Qxd5 {[%clk 00:15:20]} {[%emt
00:00:01]} 5. d4 {[%clk 00:15:20]} {[%emt 00:00:02]} Bf5 {[%clk 00:15:24]}
{[%emt 00:00:01]} 6. Be3 {[%clk 00:14:50]} {[%emt 00:00:35]} Nf6 {[%clk
00:15:25]} {[%emt 00:00:04]} 7. Qb3 {[%clk 00:14:37]} {[%emt 00:00:19]} Qxb3
{[%clk 00:14:04]} {[%emt 00:01:26]} 8. axb3 {[%clk 00:14:40]} {[%emt 00:00:01]}
cxd4 {[%clk 00:13:35]} {[%emt 00:00:34]} 9. Nxd4 {[%clk 00:14:44]} {[%emt
00:00:01]} Nxd4 {[%clk 00:13:27]} {[%emt 00:00:13]} 10. Bxd4 {[%clk 00:14:47]}
{[%emt 00:00:02]} a6 {[%clk 00:13:20]} {[%emt 00:00:11]} 11. Nd2 {[%clk
00:14:38]} {[%emt 00:00:15]} e6 {[%clk 00:13:04]} {[%emt 00:00:21]} 12. b4
{[%clk 00:13:58]} {[%emt 00:00:46]} Bd6 {[%clk 00:12:33]} {[%emt 00:00:36]} 13.
Be2 {[%clk 00:12:59]} {[%emt 00:01:03]} O-O {[%clk 00:12:33]} {[%emt 00:00:05]}
14. O-O {[%clk 00:10:26]} {[%emt 00:02:39]} Rfd8 {[%clk 00:12:29]} {[%emt
00:00:08]} 15. Nc4 {[%clk 00:09:18]} {[%emt 00:01:14]} Bc7 {[%clk 00:12:12]}
{[%emt 00:00:21]} 16. Rfe1 {[%clk 00:08:44]} {[%emt 00:00:40]} Nd5 {[%clk
00:11:56]} {[%emt 00:00:20]} 17. Red1 {[%clk 00:08:03]} {[%emt 00:00:46]} f6
{[%clk 00:11:40]} {[%emt 00:00:21]} 18. Bf3 {[%clk 00:07:55]} {[%emt 00:00:13]}
Rab8 {[%clk 00:10:13]} {[%emt 00:01:33]} 19. Na5 {[%clk 00:07:21]} {[%emt
00:00:39]} Bxa5 {[%clk 00:09:34]} {[%emt 00:00:44]} 20. bxa5 {[%clk 00:07:25]}
{[%emt 00:00:02]} Rbc8 {[%clk 00:09:19]} {[%emt 00:00:20]} 21. h4 {[%clk
00:07:09]} {[%emt 00:00:20]} Rc7 {[%clk 00:08:54]} {[%emt 00:00:30]} 22. Bb6
{[%clk 00:07:08]} {[%emt 00:00:06]} Rdd7 {[%clk 00:08:28]} {[%emt 00:00:31]} 23.
Bxc7 {[%clk 00:07:07]} {[%emt 00:00:06]} Rxc7 {[%clk 00:08:31]} {[%emt
00:00:01]} 24. Bxd5 {[%clk 00:07:06]} {[%emt 00:00:07]} exd5 {[%clk 00:08:35]}
25. Rxd5 {[%clk 00:07:09]} {[%emt 00:00:02]} Be6 {[%clk 00:08:30]} {[%emt
00:00:09]} 26. Rd6 {[%clk 00:07:09]} {[%emt 00:00:05]} Bf5 {[%clk 00:08:29]}
{[%emt 00:00:07]} 27. Ra4 {[%clk 00:06:55]} {[%emt 00:00:19]} Kf7 {[%clk
00:08:30]} {[%emt 00:00:04]} 28. Rb4 {[%clk 00:06:49]} {[%emt 00:00:12]} Kg6
{[%clk 00:08:29]} {[%emt 00:00:05]} 29. g4 {[%clk 00:06:46]} {[%emt 00:00:09]}
Bc8 {[%clk 00:08:27]} {[%emt 00:00:07]} 30. Kh2 {[%clk 00:06:22]} {[%emt
00:00:29]} h5 {[%clk 00:08:30]} {[%emt 00:00:01]} 31. f3 {[%clk 00:06:01]}
{[%emt 00:00:26]} Rc5 {[%clk 00:08:29]} {[%emt 00:00:06]} 32. Kg3 {[%clk
00:05:36]} {[%emt 00:00:30]} Rxa5 {[%clk 00:08:25]} {[%emt 00:00:09]} 33. Rc4
{[%clk 00:05:38]} {[%emt 00:00:03]} 1-0

[Event "Kvibergspelen 2018"]
[Site "Prioritet Serneke Arena, Krutvagen 2, Gothenburg, Sweden"]
[Date "2018.04.21"]
[Round "3.4"]
[White "Bjorklund, Thomas"]
[Black "Tikkanen, Hans"]
[Result "1/2-1/2"]
[TimeControl "15 minutes + 5 seconds per move from move one (Round 1 - 4) / 90 minutes + 30 seconds per move from move one (Round 5 - 8)"]
[BlackTitle "GM"]
[WhiteFideId "1724576"]
[BlackFideId "1706446"]
[WhiteElo "2156"]
[BlackElo "2486"]

1. e4 {[%clk 00:15:07]} {[%emt 00:00:04]} c6 {[%clk 00:15:09]} 2. d4 {[%clk
00:15:10]} d5 {[%clk 00:15:13]} 3. exd5 {[%clk 00:15:14]} {[%emt 00:00:02]}
cxd5 {[%clk 00:15:17]} {[%emt 00:00:01]} 4. Nf3 {[%clk 00:15:18]} {[%emt
00:00:01]} Nc6 {[%clk 00:15:13]} {[%emt 00:00:09]} 5. Be2 {[%clk 00:15:21]}
{[%emt 00:00:02]} Nf6 {[%clk 00:14:39]} {[%emt 00:00:39]} 6. O-O {[%clk
00:15:23]} {[%emt 00:00:03]} Bg4 {[%clk 00:14:17]} {[%emt 00:00:27]} 7. Re1
{[%clk 00:15:05]} {[%emt 00:00:23]} e6 {[%clk 00:14:19]} {[%emt 00:00:02]} 8.
c3 {[%clk 00:15:04]} {[%emt 00:00:07]} Bd6 {[%clk 00:14:06]} {[%emt 00:00:18]}
9. h3 {[%clk 00:14:54]} {[%emt 00:00:15]} Bh5 {[%clk 00:13:41]} {[%emt
00:00:30]} 10. Nbd2 {[%clk 00:14:47]} {[%emt 00:00:12]} Qc7 {[%clk 00:13:16]}
{[%emt 00:00:30]} 11. Nh4 {[%clk 00:14:02]} {[%emt 00:00:50]} Bxe2 {[%clk
00:12:45]} {[%emt 00:00:36]} 12. Qxe2 {[%clk 00:14:04]} {[%emt 00:00:03]} O-O-O
{[%clk 00:12:43]} {[%emt 00:00:07]} 13. a4 {[%clk 00:13:59]} {[%emt 00:00:11]}
g5 {[%clk 00:11:59]} {[%emt 00:00:48]} 14. Nhf3 {[%clk 00:14:01]} {[%emt
00:00:03]} g4 {[%clk 00:11:58]} {[%emt 00:00:06]} 15. hxg4 {[%clk 00:13:28]}
{[%emt 00:00:39]} Nxg4 {[%clk 00:11:56]} {[%emt 00:00:07]} 16. b4 {[%clk
00:13:19]} {[%emt 00:00:13]} Rdg8 {[%clk 00:10:35]} {[%emt 00:01:25]} 17. a5
{[%clk 00:12:21]} {[%emt 00:01:03]} Ne7 {[%clk 00:08:33]} {[%emt 00:02:07]} 18.
b5 {[%clk 00:09:36]} {[%emt 00:02:51]} Qd7 {[%clk 00:06:07]} {[%emt 00:02:31]}
19. c4 {[%clk 00:09:32]} {[%emt 00:00:09]} dxc4 {[%clk 00:05:31]} {[%emt
00:00:40]} 20. Nxc4 {[%clk 00:09:23]} {[%emt 00:00:14]} Nd5 {[%clk 00:05:19]}
{[%emt 00:00:17]} 21. Nxd6+ {[%clk 00:08:02]} {[%emt 00:01:25]} Qxd6 {[%clk
00:05:23]} {[%emt 00:00:02]} 22. Ba3 {[%clk 00:08:05]} {[%emt 00:00:02]} Qf4
{[%clk 00:04:28]} {[%emt 00:00:59]} 23. Qe4 {[%clk 00:05:37]} {[%emt 00:02:33]}
Qxe4 {[%clk 00:01:25]} {[%emt 00:03:08]} 24. Rxe4 {[%clk 00:05:40]} {[%emt
00:00:02]} 1/2-1/2

[Event "Kvibergspelen 2018"]
[Site "Prioritet Serneke Arena, Krutvagen 2, Gothenburg, Sweden"]
[Date "2018.04.21"]
[Round "3.5"]
[White "Brynell, Stellan"]
[Black "Subramanian, Aditya"]
[Result "1-0"]
[TimeControl "15 minutes + 5 seconds per move from move one (Round 1 - 4) / 90 minutes + 30 seconds per move from move one (Round 5 - 8)"]
[WhiteTitle "GM"]
[WhiteFideId "1700219"]
[BlackFideId "1718924"]
[WhiteElo "2420"]
[BlackElo "2128"]

1. d4 {[%clk 00:15:02]} {[%emt 00:00:06]} Nf6 {[%clk 00:15:09]} {[%emt
00:00:02]} 2. Nf3 {[%clk 00:15:05]} {[%emt 00:00:02]} d5 {[%clk 00:15:13]}
{[%emt 00:00:01]} 3. c4 {[%clk 00:15:06]} {[%emt 00:00:04]} e6 {[%clk
00:15:16]} {[%emt 00:00:02]} 4. g3 {[%clk 00:15:02]} {[%emt 00:00:09]} Be7
{[%clk 00:15:19]} {[%emt 00:00:02]} 5. Bg2 {[%clk 00:15:05]} {[%emt 00:00:02]}
O-O {[%clk 00:15:20]} {[%emt 00:00:03]} 6. O-O {[%clk 00:15:08]} {[%emt
00:00:04]} dxc4 {[%clk 00:15:23]} {[%emt 00:00:02]} 7. Qc2 {[%clk 00:15:07]}
{[%emt 00:00:06]} a6 {[%clk 00:15:27]} {[%emt 00:00:01]} 8. Qxc4 {[%clk
00:15:08]} {[%emt 00:00:04]} b5 {[%clk 00:15:31]} {[%emt 00:00:01]} 9. Qc2
{[%clk 00:15:11]} {[%emt 00:00:01]} Bb7 {[%clk 00:15:35]} {[%emt 00:00:01]} 10.
Bf4 {[%clk 00:15:11]} {[%emt 00:00:05]} Nc6 {[%clk 00:15:33]} {[%emt 00:00:07]}
11. Rd1 {[%clk 00:14:51]} {[%emt 00:00:25]} Nb4 {[%clk 00:15:33]} {[%emt
00:00:05]} 12. Qc1 {[%clk 00:14:45]} {[%emt 00:00:11]} Nbd5 {[%clk 00:15:33]}
{[%emt 00:00:05]} 13. Nbd2 {[%clk 00:14:03]} {[%emt 00:00:47]} Rc8 {[%clk
00:15:18]} {[%emt 00:00:20]} 14. Nb3 {[%clk 00:13:59]} {[%emt 00:00:09]} Nxf4
{[%clk 00:13:26]} {[%emt 00:01:57]} 15. gxf4 {[%clk 00:13:35]} {[%emt
00:00:29]} c5 {[%clk 00:12:21]} {[%emt 00:01:10]} 16. dxc5 {[%clk 00:13:09]}
{[%emt 00:00:31]} Qc7 {[%clk 00:12:25]} {[%emt 00:00:02]} 17. Ne5 {[%clk
00:11:49]} {[%emt 00:01:24]} Bxg2 {[%clk 00:12:08]} {[%emt 00:00:22]} 18. Kxg2
{[%clk 00:11:53]} Bxc5 {[%clk 00:12:11]} {[%emt 00:00:02]} 19. Nxc5 {[%clk
00:11:14]} {[%emt 00:00:44]} Qxc5 {[%clk 00:12:09]} {[%emt 00:00:07]} 20. Qxc5
{[%clk 00:11:17]} {[%emt 00:00:01]} Rxc5 {[%clk 00:12:13]} {[%emt 00:00:01]} 21.
Rac1 {[%clk 00:11:13]} {[%emt 00:00:09]} Rxc1 {[%clk 00:11:31]} {[%emt
00:00:47]} 22. Rxc1 {[%clk 00:11:17]} Nd5 {[%clk 00:11:31]} {[%emt 00:00:06]}
23. Kf3 {[%clk 00:10:49]} {[%emt 00:00:33]} f6 {[%clk 00:11:35]} {[%emt
00:00:02]} 24. Nd3 {[%clk 00:10:39]} {[%emt 00:00:14]} Kf7 {[%clk 00:10:31]}
{[%emt 00:01:09]} 25. Rc6 {[%clk 00:10:34]} {[%emt 00:00:09]} Ra8 {[%clk
00:09:46]} {[%emt 00:00:50]} 26. Nc5 {[%clk 00:10:18]} {[%emt 00:00:22]} Re8
{[%clk 00:08:00]} {[%emt 00:01:51]} 27. Rxa6 {[%clk 00:09:58]} {[%emt
00:00:25]} Rc8 {[%clk 00:07:50]} {[%emt 00:00:15]} 28. Ra7+ {[%clk 00:09:45]}
{[%emt 00:00:19]} Ne7 {[%clk 00:07:40]} {[%emt 00:00:14]} 29. Nd3 {[%clk
00:09:40]} {[%emt 00:00:10]} Rd8 {[%clk 00:07:02]} {[%emt 00:00:44]} 30. Rb7
{[%clk 00:09:28]} {[%emt 00:00:16]} Rd5 {[%clk 00:07:06]} {[%emt 00:00:01]} 31.
Rc7 {[%clk 00:08:07]} {[%emt 00:01:26]} Rh5 {[%clk 00:06:15]} {[%emt 00:00:55]}
32. Rc5 {[%clk 00:07:52]} {[%emt 00:00:20]} Rxh2 {[%clk 00:05:32]} {[%emt
00:00:48]} 33. Rxb5 {[%clk 00:07:56]} {[%emt 00:00:02]} h5 {[%clk 00:05:31]}
{[%emt 00:00:06]} 34. Rb7 {[%clk 00:07:45]} {[%emt 00:00:17]} g5 {[%clk
00:05:13]} {[%emt 00:00:22]} 35. fxg5 {[%clk 00:07:14]} {[%emt 00:00:35]} fxg5
{[%clk 00:05:17]} {[%emt 00:00:02]} 36. Nc5 {[%clk 00:07:03]} {[%emt 00:00:16]}
Rh4 {[%clk 00:04:38]} {[%emt 00:00:43]} 37. e3 {[%clk 00:06:49]} {[%emt
00:00:19]} Rc4 {[%clk 00:04:26]} {[%emt 00:00:17]} 38. Ne4 {[%clk 00:06:38]}
{[%emt 00:00:16]} g4+ {[%clk 00:03:51]} {[%emt 00:00:41]} 39. Kf4 {[%clk
00:06:41]} Rc2 {[%clk 00:03:55]} {[%emt 00:00:01]} 40. Kg5 {[%clk 00:06:10]}
{[%emt 00:00:36]} g3 {[%clk 00:03:11]} {[%emt 00:00:50]} 41. fxg3 {[%clk
00:05:52]} {[%emt 00:00:22]} Re2 {[%clk 00:03:15]} {[%emt 00:00:01]} 42. Kf4
{[%clk 00:05:19]} {[%emt 00:00:38]} Kf8 {[%clk 00:02:27]} {[%emt 00:00:53]} 43.
Kf3 {[%clk 00:04:49]} {[%emt 00:00:36]} Rc2 {[%clk 00:02:04]} {[%emt 00:00:28]}
44. Ng5 {[%clk 00:03:59]} {[%emt 00:00:55]} Rc6 {[%clk 00:02:05]} {[%emt
00:00:04]} 45. b4 {[%clk 00:03:45]} {[%emt 00:00:19]} Ra6 {[%clk 00:02:00]}
{[%emt 00:00:11]} 46. b5 {[%clk 00:03:48]} {[%emt 00:00:02]} Rxa2 {[%clk
00:02:03]} {[%emt 00:00:02]} 47. Nxe6+ {[%clk 00:03:51]} {[%emt 00:00:02]} Kf7
{[%clk 00:02:07]} 48. Nf4 {[%clk 00:03:50]} {[%emt 00:00:06]} Rh2 {[%clk
00:01:55]} {[%emt 00:00:17]} 49. Nd5 {[%emt 00:00:22]} 1-0

[Event "Kvibergspelen 2018"]
[Site "Prioritet Serneke Arena, Krutvagen 2, Gothenburg, Sweden"]
[Date "2018.04.21"]
[Round "3.6"]
[White "Ernst, Thomas"]
[Black "Bengtsson, Siv"]
[Result "1-0"]
[TimeControl "15 minutes + 5 seconds per move from move one (Round 1 - 4) / 90 minutes + 30 seconds per move from move one (Round 5 - 8)"]
[WhiteTitle "GM"]
[WhiteFideId "1700065"]
[BlackFideId "1701673"]
[WhiteElo "2366"]
[BlackElo "2125"]

1. e4 {[%clk 00:15:06]} {[%emt 00:00:01]} c5 {[%clk 00:15:02]} {[%emt
00:01:21]} 2. Nf3 {[%clk 00:15:09]} {[%emt 00:00:02]} Nc6 {[%clk 00:15:05]}
{[%emt 00:00:02]} 3. d4 {[%clk 00:15:12]} {[%emt 00:00:02]} cxd4 {[%clk
00:15:08]} {[%emt 00:00:02]} 4. Nxd4 {[%clk 00:15:15]} {[%emt 00:00:02]} Nf6
{[%clk 00:15:09]} {[%emt 00:00:04]} 5. Nc3 {[%clk 00:15:18]} {[%emt 00:00:02]}
e5 {[%clk 00:15:12]} {[%emt 00:00:02]} 6. Ndb5 {[%clk 00:15:20]} {[%emt
00:00:02]} d6 {[%clk 00:15:15]} {[%emt 00:00:02]} 7. Bg5 {[%clk 00:15:22]}
{[%emt 00:00:03]} a6 {[%clk 00:15:18]} {[%emt 00:00:03]} 8. Na3 {[%clk
00:15:24]} {[%emt 00:00:03]} b5 {[%clk 00:15:18]} {[%emt 00:00:05]} 9. Bxf6
{[%clk 00:15:26]} {[%emt 00:00:03]} gxf6 {[%clk 00:15:16]} {[%emt 00:00:07]} 10.
Nd5 {[%clk 00:15:28]} {[%emt 00:00:03]} f5 {[%clk 00:15:17]} {[%emt 00:00:04]}
11. Bd3 {[%clk 00:15:29]} {[%emt 00:00:04]} Be6 {[%clk 00:15:14]} {[%emt
00:00:07]} 12. O-O {[%clk 00:15:29]} {[%emt 00:00:05]} Bg7 {[%clk 00:14:07]}
{[%emt 00:01:12]} 13. Qh5 {[%clk 00:15:30]} {[%emt 00:00:04]} f4 {[%clk
00:13:34]} {[%emt 00:00:38]} 14. c4 {[%clk 00:15:25]} {[%emt 00:00:10]} b4
{[%clk 00:13:01]} {[%emt 00:00:39]} 15. Nc2 {[%clk 00:15:26]} {[%emt 00:00:04]}
Rb8 {[%clk 00:12:20]} {[%emt 00:00:46]} 16. b3 {[%clk 00:15:13]} {[%emt
00:00:19]} O-O {[%clk 00:11:57]} {[%emt 00:00:28]} 17. g3 {[%clk 00:14:15]}
{[%emt 00:01:03]} a5 {[%clk 00:08:13]} {[%emt 00:03:49]} 18. Rae1 {[%clk
00:12:20]} {[%emt 00:01:59]} h6 {[%clk 00:05:51]} {[%emt 00:02:27]} 19. gxf4
{[%clk 00:12:06]} {[%emt 00:00:18]} exf4 {[%clk 00:05:46]} {[%emt 00:00:11]} 20.
Nxf4 {[%clk 00:11:53]} {[%emt 00:00:18]} Ne5 {[%clk 00:05:48]} {[%emt
00:00:04]} 21. Be2 {[%clk 00:11:19]} {[%emt 00:00:38]} Qf6 {[%clk 00:03:41]}
{[%emt 00:02:12]} 22. Nxe6 {[%clk 00:10:48]} {[%emt 00:00:36]} fxe6 {[%clk
00:03:38]} {[%emt 00:00:08]} 23. f4 {[%clk 00:10:23]} {[%emt 00:00:31]} Qg6+
{[%clk 00:03:30]} {[%emt 00:00:13]} 24. Qxg6 {[%clk 00:10:01]} {[%emt
00:00:26]} Nxg6 {[%clk 00:03:34]} {[%emt 00:00:01]} 25. f5 {[%clk 00:10:00]}
{[%emt 00:00:06]} exf5 {[%clk 00:03:16]} {[%emt 00:00:23]} 26. exf5 {[%clk
00:09:59]} {[%emt 00:00:06]} Ne5 {[%clk 00:03:08]} {[%emt 00:00:13]} 27. Ne3
{[%clk 00:09:27]} {[%emt 00:00:36]} Bf6 {[%clk 00:03:10]} {[%emt 00:00:04]} 28.
Nd5 {[%clk 00:08:50]} {[%emt 00:00:42]} Bh4 {[%clk 00:02:29]} {[%emt 00:00:45]}
29. Rd1 {[%clk 00:08:51]} {[%emt 00:00:04]} Kh8 {[%clk 00:02:27]} {[%emt
00:00:07]} 30. Rd4 {[%clk 00:07:59]} {[%emt 00:00:57]} Bf6 {[%clk 00:02:30]}
{[%emt 00:00:04]} 31. Re4 {[%clk 00:07:17]} {[%emt 00:00:46]} Rb7 {[%clk
00:01:58]} {[%emt 00:00:38]} 32. c5 {[%clk 00:06:17]} {[%emt 00:01:05]} Rd7
{[%clk 00:00:44]} {[%emt 00:01:19]} 33. cxd6 {[%clk 00:05:48]} {[%emt
00:00:33]} Nc6 {[%clk 00:00:46]} {[%emt 00:00:03]} 34. Re6 {[%clk 00:05:05]}
{[%emt 00:00:47]} Bd4+ {[%clk 00:00:29]} {[%emt 00:00:23]} 35. Kh1 {[%clk
00:05:00]} {[%emt 00:00:11]} Bc5 {[%clk 00:00:32]} {[%emt 00:00:02]} 36. Rxh6
{[%clk 00:04:26]} {[%emt 00:00:38]} Kg7 {[%clk 00:00:35]} {[%emt 00:00:03]} 37.
Rg6+ {[%clk 00:04:27]} {[%emt 00:00:04]} Kh7 {[%clk 00:00:38]} {[%emt
00:00:02]} 38. Nf6 {[%clk 00:04:16]} {[%emt 00:00:16]} Rxf6 {[%clk 00:00:41]}
{[%emt 00:00:01]} 39. Rxf6 {[%clk 00:04:19]} {[%emt 00:00:02]} Nd4 {[%clk
00:00:36]} {[%emt 00:00:10]} 40. Bc4 {[%clk 00:04:02]} {[%emt 00:00:23]} Bxd6
{[%clk 00:00:37]} {[%emt 00:00:04]} 41. Rd1 {[%clk 00:03:47]} {[%emt 00:00:19]}
Be5 {[%clk 00:00:41]} {[%emt 00:00:02]} 42. Re6 {[%clk 00:03:43]} {[%emt
00:00:09]} Bh8 {[%clk 00:00:35]} {[%emt 00:00:10]} 43. f6 {[%clk 00:03:35]}
{[%emt 00:00:13]} 1-0